fUST/lending_fUST_20240517
["ID","MTS","AMOUNT","RATE_DAILY","PERIOD"]
[327246886,1715922643563,-706.43226054,0.00016436,2]
[327246887,1715922643573,-284.55118921,0.00016436,2]
[327246888,1715922643582,-220.95003588,0.00016436,2]
[327246889,1715922643591,-269.98788491,0.00016436,2]
[327246890,1715922643600,-172.56628896,0.00016436,2]
[327246891,1715922643610,-155.29732493,0.00016436,2]
[327246892,1715922643620,-379.59171454,0.00016436,2]
[327246893,1715922643629,-155.03195344,0.00016436,2]
[327246894,1715922643639,-155.15173919,0.00016436,2]
[327246895,1715922643648,-155.18249035,0.00016436,2]
[327246896,1715922643658,-529.90925899,0.00016436,2]
[327246897,1715922643667,-208.36578461,0.00016436,2]
[327246898,1715922643677,-1338.26302922,0.00016436,2]
[327246899,1715922643687,-909.20919161,0.00016436,2]
[327246900,1715922643696,-155.2728515,0.00016436,2]
[327246901,1715922643705,-236.41159802,0.00016436,2]
[327246902,1715922643714,-154.96096805,0.00016437,2]
[327246903,1715922643725,-1884.51859878,0.00016437,2]
[327246904,1715922643735,-500.0,0.00016438,2]
[327246905,1715922643743,-648.61,0.00016438,4]
[327246906,1715922643753,-500.0,0.00016438,2]
[327246907,1715922643762,-500.0,0.00016438,2]
[327246908,1715922643771,-500.0,0.00016438,2]
[327246909,1715922643780,-501.40638356,0.00016438,2]
[327246910,1715922643789,-500.0,0.00016438,2]
[327246911,1715922643798,-500.0,0.00016438,2]
[327246912,1715922643808,-500.0,0.00016438,2]
[327246914,1715922643817,-529.56,0.00016438,2]
[327246916,1715922643826,-155.378355,0.00016438,2]
[327246918,1715922643835,-500.0,0.00016438,2]
[327246920,1715922643846,-500.0,0.00016438,2]
[327246922,1715922643855,-987.66,0.00016438,2]
[327246924,1715922643864,-500.0,0.00016438,2]
[327246926,1715922643874,-500.0,0.00016438,2]
[327246928,1715922643883,-500.0,0.00016438,2]
[327246930,1715922643893,-500.0,0.00016438,2]
[327246932,1715922643902,-502.11441857,0.00016438,2]
[327246934,1715922643911,-1038.68,0.00016438,2]
[327246936,1715922643921,-500.0,0.00016438,2]
[327246938,1715922643930,-500.0,0.00016438,2]
[327246940,1715922643938,-500.0,0.00016438,2]
[327246942,1715922643947,-500.0,0.00016438,2]
[327246943,1715922643956,-500.0,0.00016438,2]
[327246945,1715922643964,-151.0,0.00016438,2]
[327246947,1715922643973,-151.0,0.00016438,2]
[327246949,1715922643982,-151.0,0.00016438,2]
[327246951,1715922643991,-151.0,0.00016438,2]
[327246953,1715922644000,-500.0,0.00016438,2]
[327246955,1715922644008,-588.05,0.00016438,2]
[327246957,1715922644018,-500.0,0.00016438,2]
[327246959,1715922644026,-457.70797148,0.00016438,2]
[327246961,1715922644035,-1068.97,0.00016438,2]
[327246964,1715922644054,-500.0,0.00016438,2]
[327246967,1715922644065,-151.0,0.00016438,2]
[327246969,1715922644074,-152.786746,0.00016438,2]
[327246971,1715922644084,-500.0,0.00016438,2]
[327246973,1715922644094,-732.31,0.00016438,2]
[327246975,1715922644103,-502.76313042,0.00016438,2]
[327246977,1715922644113,-448.22731097,0.00016438,2]
[327246978,1715922644122,-504.35412716,0.00016438,2]
[327246981,1715922644132,-500.0,0.00016438,2]
[327246983,1715922644141,-697.0,0.00016438,2]
[327246985,1715922644151,-500.0,0.00016438,2]
[327246987,1715922644161,-500.0,0.00016438,2]
[327246989,1715922644175,-500.0,0.00016438,2]
[327246991,1715922644184,-500.0,0.00016438,2]
[327246993,1715922644194,-500.0,0.00016438,2]
[327246995,1715922644203,-315.16726984,0.00016438,2]
[327246997,1715922644212,-151.0,0.00016438,2]
[327246999,1715922644221,-151.0,0.00016438,2]
[327247001,1715922644230,-151.0,0.00016438,2]
[327247003,1715922644239,-151.0,0.00016438,2]
[327247005,1715922644248,-151.0,0.00016438,2]
[327247007,1715922644257,-500.0,0.00016438,2]
[327247009,1715922644267,-241.78331808,0.00016438,2]
[327247011,1715922644276,-222.520986,0.00016438,2]
[327247013,1715922644291,-801.99,0.00016438,2]
[327247015,1715922644301,-500.0,0.00016438,2]
[327247018,1715922644310,-500.0,0.00016438,2]
[327247020,1715922644319,-151.0,0.00016438,2]
[327247022,1715922644328,-151.0,0.00016438,2]
[327247023,1715922644338,-151.0,0.00016438,2]
[327247026,1715922644347,-151.0,0.00016438,2]
[327247027,1715922644357,-151.0,0.00016438,2]
[327247029,1715922644366,-151.0,0.00016438,2]
[327247031,1715922644375,-151.0,0.00016438,2]
[327247033,1715922644384,-151.0,0.00016438,2]
[327247035,1715922644393,-151.0,0.00016438,2]
[327247037,1715922644402,-151.0,0.00016438,2]
[327247039,1715922644411,-151.0,0.00016438,2]
[327247041,1715922644422,-151.0,0.00016438,2]
[327247044,1715922644431,-1071.33,0.00016438,2]
[327247046,1715922644440,-500.0,0.00016438,2]
[327247048,1715922644450,-557.88,0.00016438,2]
[327247050,1715922644459,-151.0,0.00016438,2]
[327247052,1715922644468,-151.0,0.00016438,2]
[327247054,1715922644477,-151.0,0.00016438,2]
[327247055,1715922644486,-151.0,0.00016438,2]
[327247058,1715922644496,-743.62,0.00016438,2]
[327247060,1715922644506,-907.62,0.00016438,2]
[327247062,1715922644515,-500.0,0.00016438,2]
[327247064,1715922644524,-500.0,0.00016438,2]
[327247066,1715922644534,-500.0,0.00016438,2]
[327247068,1715922644543,-500.0,0.00016438,2]
[327247070,1715922644552,-500.0,0.00016438,2]
[327247072,1715922644562,-890.88,0.00016438,2]
[327247074,1715922644572,-500.0,0.00016438,2]
[327247076,1715922644581,-500.0,0.00016438,2]
[327247078,1715922644591,-500.0,0.00016438,2]
[327247080,1715922644600,-500.0,0.00016438,2]
[327247082,1715922644610,-3235.34,0.00016438,2]
[327247084,1715922644619,-500.0,0.00016438,2]
[327247086,1715922644629,-1749.67,0.00016438,2]
[327247088,1715922644638,-579.15,0.00016438,2]
[327247090,1715922644647,-509.34464956,0.00016438,2]
[327247092,1715922644657,-1077.68,0.00016438,2]
[327247094,1715922644667,-473.75754868,0.00016438,2]
[327247096,1715922644676,-500.0,0.00016438,2]
[327247098,1715922644685,-21854.4,0.00016438,2]
[327247100,1715922644694,-973.91,0.00016438,2]
[327247102,1715922644703,-500.0,0.00016438,2]
[327247104,1715922644713,-558.32230196,0.00016438,2]
[327247106,1715922644722,-2002.51,0.00016438,2]
[327247108,1715922644731,-500.0,0.00016438,2]
[327247110,1715922644740,-151.0,0.00016438,2]
[327247112,1715922644749,-500.0,0.00016438,2]
[327247114,1715922644759,-500.47886625,0.00016438,2]
[327247116,1715922644768,-500.0,0.00016438,2]
[327247118,1715922644777,-882.58,0.00016438,2]
[327247120,1715922644786,-503.82411252,0.00016438,2]
[327247122,1715922644796,-502.55333675,0.00016438,2]
[327247124,1715922644806,-235.94722059,0.00016438,2]
[327247126,1715922644815,-835.26,0.00016438,2]
[327247128,1715922644824,-500.89045438,0.00016438,2]
[327247130,1715922644833,-852.08,0.00016438,2]
[327247132,1715922644843,-518.8420781,0.00016438,2]
[327247134,1715922644852,-500.0,0.00016438,2]
[327247136,1715922644861,-500.0,0.00016438,2]
[327247138,1715922644871,-5668.9,0.00016438,2]
[327247140,1715922644881,-591.56,0.00016438,2]
[327247143,1715922644893,-502.52850367,0.00016438,2]
[327247145,1715922644902,-500.0,0.00016438,2]
[327247147,1715922644911,-505.28300636,0.00016438,2]
[327247149,1715922644923,-502.61963844,0.00016438,2]
[327247151,1715922644932,-500.0,0.00016438,2]
[327247153,1715922644941,-501.93301984,0.00016438,2]
[327247155,1715922644950,-503.87073412,0.00016438,2]
[327247157,1715922644959,-1237.06,0.00016438,2]
[327247159,1715922644968,-502.0985561,0.00016438,2]
[327247161,1715922644978,-500.0,0.00016438,2]
[327247163,1715922644987,-2062.57,0.00016438,2]
[327247165,1715922644996,-500.0,0.00016438,2]
[327247167,1715922645007,-501.90946157,0.00016438,2]
[327247169,1715922645016,-541.56,0.00016438,2]
[327247171,1715922645025,-2676.92,0.00016438,2]
[327247173,1715922645035,-501.32783621,0.00016438,2]
[327247175,1715922645044,-151.0,0.00016438,2]
[327247177,1715922645053,-151.0,0.00016438,2]
[327247179,1715922645062,-151.0,0.00016438,2]
[327247181,1715922645072,-151.0,0.00016438,2]
[327247183,1715922645081,-501.34204885,0.00016438,2]
[327247185,1715922645090,-180.655402,0.00016438,2]
[327247187,1715922645099,-500.0,0.00016438,2]
[327247189,1715922645108,-500.8188246,0.00016438,2]
[327247191,1715922645118,-501.32814268,0.00016438,2]
[327247193,1715922645127,-500.0,0.00016438,2]
[327247195,1715922645136,-500.0,0.00016438,2]
[327247197,1715922645145,-564.6,0.00016438,2]
[327247199,1715922645154,-500.0,0.00016438,2]
[327247201,1715922645165,-5480.68,0.00016438,2]
[327247203,1715922645178,-531.8505593,0.00016438,2]
[327247205,1715922645187,-151.0,0.00016438,2]
[327247207,1715922645197,-151.0,0.00016438,2]
[327247209,1715922645208,-152.857854,0.00016438,2]
[327247212,1715922645217,-370.103146,0.00016438,2]
[327247214,1715922645226,-370.103146,0.00016438,2]
[327247216,1715922645235,-370.103146,0.00016438,2]
[327247218,1715922645246,-370.103146,0.00016438,2]
[327247220,1715922645255,-370.103146,0.00016438,2]
[327247221,1715922645264,-370.103146,0.00016438,2]
[327247224,1715922645274,-505.94408347,0.00016438,2]
[327247226,1715922645283,-500.0,0.00016438,2]
[327247227,1715922645292,-335.11403832,0.00016438,2]
[327247230,1715922645301,-370.103146,0.00016438,2]
[327247231,1715922645311,-370.103146,0.00016438,2]
[327247234,1715922645320,-370.103146,0.00016438,2]
[327247236,1715922645329,-370.103146,0.00016438,2]
[327247238,1715922645339,-8702.14,0.00016438,2]
[327247240,1715922645349,-370.103146,0.00016438,2]
[327247242,1715922645358,-500.0,0.00016438,2]
[327247244,1715922645368,-370.103146,0.00016438,2]
[327247246,1715922645378,-503.23261682,0.00016438,2]
[327247248,1715922645387,-956.22,0.00016438,2]
[327247250,1715922645397,-503.26412054,0.00016438,2]
[327247252,1715922645406,-500.0,0.00016438,2]
[327247254,1715922645416,-238.42352075,0.00016438,2]
[327247256,1715922645427,-151.0,0.00016438,2]
[327247258,1715922645436,-180.883348,0.00016438,2]
[327247260,1715922645446,-500.0,0.00016438,2]
[327247262,1715922645455,-500.0,0.00016438,2]
[327247264,1715922645464,-500.0,0.00016438,2]
[327247266,1715922645474,-1201.14,0.00016438,2]
[327247268,1715922645484,-826.950233,0.00016438,2]
[327247270,1715922645494,-631.92,0.00016438,2]
[327247272,1715922645503,-826.950233,0.00016438,2]
[327247274,1715922645513,-826.950233,0.00016438,2]
[327247276,1715922645523,-826.950233,0.00016438,2]
[327247278,1715922645532,-826.950233,0.00016438,2]
[327247280,1715922645541,-826.950233,0.00016438,2]
[327247282,1715922645551,-826.950233,0.00016438,2]
[327247284,1715922645560,-826.950233,0.00016438,2]
[327247286,1715922645570,-826.950233,0.00016438,2]
[327247288,1715922645580,-826.950233,0.00016438,2]
[327247290,1715922645589,-826.950233,0.00016438,2]
[327247292,1715922645599,-826.950233,0.00016438,2]
[327247294,1715922645608,-151.0,0.00016438,2]
[327247296,1715922645618,-227.808103,0.00016438,2]
[327247298,1715922645627,-535.49,0.00016438,2]
[327247300,1715922645636,-500.0,0.00016438,2]
[327247302,1715922645646,-500.0,0.00016438,2]
[327247304,1715922645655,-500.0,0.00016438,2]
[327247306,1715922645665,-868.03,0.00016438,2]
[327247308,1715922645674,-1767.27,0.00016438,2]
[327247309,1715922645683,-500.0,0.00016438,2]
[327247311,1715922645693,-500.20977936,0.00016438,2]
[327247313,1715922645702,-179.76535576,0.00016438,2]
[327247314,1715922645711,-502.17718809,0.00016438,2]
[327247316,1715922645721,-500.0,0.00016438,2]
[327247318,1715922645729,-500.0,0.00016438,2]
[327247320,1715922645740,-1891.598597,0.00016438,2]
[327247322,1715922645749,-1891.598597,0.00016438,2]
[327247324,1715922645758,-151.0,0.00016438,2]
[327247325,1715922645767,-1891.598597,0.00016438,2]
[327247327,1715922645776,-151.0,0.00016438,2]
[327247329,1715922645786,-1891.598597,0.00016438,2]
[327247331,1715922645795,-678.71,0.00016438,2]
[327247333,1715922645804,-1891.598597,0.00016438,2]
[327247334,1715922645813,-151.0,0.00016438,2]
[327247336,1715922645823,-151.0,0.00016438,2]
[327247338,1715922645831,-1891.598597,0.00016438,2]
[327247340,1715922645841,-151.0,0.00016438,2]
[327247341,1715922645850,-151.0,0.00016438,2]
[327247343,1715922645859,-1385.83,0.00016438,2]
[327247345,1715922645868,-1891.598597,0.00016438,2]
[327247347,1715922645877,-1891.598597,0.00016438,2]
[327247348,1715922645887,-1891.598597,0.00016438,2]
[327247350,1715922645896,-500.0,0.00016438,2]
[327247352,1715922645905,-1891.598597,0.00016438,2]
[327247354,1715922645914,-1891.598597,0.00016438,2]
[327247356,1715922645924,-167.438172,0.00016438,2]
[327247357,1715922645933,-1891.598597,0.00016438,2]
[327247359,1715922645942,-502.77485854,0.00016438,2]
[327247361,1715922645952,-523.88032116,0.00016438,2]
[327247363,1715922645961,-669.04,0.00016438,2]
[327247365,1715922645971,-501.3348054,0.00016438,2]
[327247366,1715922645981,-2856.72274492,0.00016438,3]
[327247368,1715922645991,-151.0,0.00016438,2]
[327247370,1715922646000,-151.0,0.00016438,2]
[327247372,1715922646010,-151.0,0.00016438,2]
[327247374,1715922646019,-151.0,0.00016438,2]
[327247376,1715922646028,-151.0,0.00016438,2]
[327247377,1715922646037,-151.0,0.00016438,2]
[327247379,1715922646046,-151.0,0.00016438,2]
[327247381,1715922646056,-178.147078,0.00016438,2]
[327247383,1715922646065,-620.2856815,0.00016496,2]
[327247385,1715922646075,-153.0,0.000165,2]
[327247386,1715922646083,-153.0,0.000165,2]
[327247388,1715922646093,-153.0,0.000165,2]
[327247390,1715922646103,-153.0,0.000165,2]
[327247392,1715922646112,-169.5083448,0.000165,2]
[327247393,1715922646121,-498.581,0.00016506,2]
[327247395,1715922646131,-150.0,0.00016506,2]
[327247397,1715922646140,-150.40028902,0.00016544,2]
[327247399,1715922646150,-153.0,0.000166,2]
[327247401,1715922646160,-153.0,0.000166,2]
[327247403,1715922646172,-153.0,0.000166,2]
[327247404,1715922646182,-153.0,0.000166,2]
[327247406,1715922646191,-154.5715593,0.000166,2]
[327247408,1715922646201,-153.0,0.000166,2]
[327247410,1715922646210,-153.0,0.000166,2]
[327247412,1715922646219,-153.0,0.000166,2]
[327247414,1715922646229,-153.0,0.000166,2]
[327247416,1715922646247,-153.0,0.000166,2]
[327247418,1715922646257,-153.0,0.000166,2]
[327247420,1715922646267,-153.0,0.000166,2]
[327247422,1715922646277,-153.0,0.000166,2]
[327247424,1715922646286,-153.0,0.000166,2]
[327247425,1715922646300,-310.0455383,0.000166,2]
[327247427,1715922646309,-153.0,0.000166,2]
[327247429,1715922646319,-163.4991236,0.000166,2]
[327247431,1715922646328,-153.0,0.000166,2]
[327247433,1715922646337,-153.0,0.000166,2]
[327247435,1715922646346,-161.9,0.00016604,2]
[327247436,1715922646356,-370.103146,0.00016604,2]
[327247438,1715922646366,-370.103146,0.00016604,2]
[327247440,1715922646376,-826.950233,0.00016604,2]
[327247442,1715922646385,-826.950233,0.00016604,2]
[327247444,1715922646395,-661.5,0.00016604,2]
[327247446,1715922646404,-1891.598597,0.00016612,2]
[327247448,1715922646413,-151.0,0.00016612,2]
[327247450,1715922646423,-1891.598597,0.00016612,2]
[327247452,1715922646432,-2000.0,0.00016612,2]
[327247454,1715922646442,-238.9524,0.00016628,2]
[327247456,1715922646451,-227.87187687,0.00016712,2]
[327247457,1715922646460,-500.0,0.00016712,2]
[327247459,1715922646469,-648.61,0.00016712,4]
[327247461,1715922646481,-500.0,0.00016712,2]
[327247463,1715922646490,-500.0,0.00016712,2]
[327247465,1715922646499,-367.41848124,0.00016712,2]
[327247467,1715922646508,-500.0,0.00016712,2]
[327247469,1715922646517,-529.56,0.00016712,2]
[327247471,1715922646527,-500.0,0.00016712,2]
[327247472,1715922646536,-500.0,0.00016712,2]
[327247474,1715922646545,-987.66,0.00016712,2]
[327247476,1715922646554,-500.0,0.00016712,2]
[327247478,1715922646564,-500.0,0.00016712,2]
[327247499,1715922646779,-500.0,0.00016712,2]
[327247501,1715922646789,-500.0,0.00016712,2]
[327247503,1715922646798,-1038.68,0.00016712,2]
[327247505,1715922646807,-500.0,0.00016712,2]
[327247507,1715922646816,-500.0,0.00016712,2]
[327247508,1715922646826,-500.0,0.00016712,2]
[327247510,1715922646835,-500.0,0.00016712,2]
[327247512,1715922646844,-500.0,0.00016712,2]
[327247514,1715922646853,-588.05,0.00016712,2]
[327247516,1715922646862,-500.0,0.00016712,2]
[327247518,1715922646871,-1068.97,0.00016712,2]
[327247519,1715922646880,-500.0,0.00016712,2]
[327247521,1715922646889,-500.0,0.00016712,2]
[327247523,1715922646898,-732.31,0.00016712,2]
[327247525,1715922646907,-500.0,0.00016712,2]
[327247527,1715922646916,-697.0,0.00016712,2]
[327247529,1715922646926,-500.0,0.00016712,2]
[327247531,1715922646935,-500.0,0.00016712,2]
[327247532,1715922646944,-500.0,0.00016712,2]
[327247534,1715922646953,-151.0,0.00016712,2]
[327247536,1715922646962,-151.0,0.00016712,2]
[327247538,1715922646971,-151.0,0.00016712,2]
[327247540,1715922646981,-151.0,0.00016712,2]
[327247542,1715922646990,-151.0,0.00016712,2]
[327247543,1715922646999,-151.0,0.00016712,2]
[327247545,1715922647008,-151.0,0.00016712,2]
[327247547,1715922647017,-155.034814,0.00016712,2]
[327247549,1715922647027,-500.0,0.00016712,2]
[327247551,1715922647035,-801.99,0.00016712,2]
[327247553,1715922647044,-500.0,0.00016712,2]
[327247555,1715922647053,-500.0,0.00016712,2]
[327247556,1715922647062,-151.0,0.00016712,2]
[327247558,1715922647073,-151.0,0.00016712,2]
[327247560,1715922647082,-151.0,0.00016712,2]
[327247562,1715922647091,-151.0,0.00016712,2]
[327247564,1715922647100,-151.0,0.00016712,2]
[327247566,1715922647110,-151.0,0.00016712,2]
[327247567,1715922647118,-151.733483,0.00016712,2]
[327247569,1715922647127,-1071.33,0.00016712,2]
[327247571,1715922647137,-274.03388729,0.00016712,2]
[327247573,1715922647146,-557.88,0.00016712,2]
[327247575,1715922647155,-743.62,0.00016712,2]
[327247577,1715922647164,-907.62,0.00016712,2]
[327247579,1715922647178,-500.0,0.00016712,2]
[327247580,1715922647187,-500.0,0.00016712,2]
[327247582,1715922647196,-890.88,0.00016712,2]
[327247584,1715922647204,-500.0,0.00016712,2]
[327247586,1715922647214,-500.0,0.00016712,2]
[327247588,1715922647223,-500.0,0.00016712,2]
[327247589,1715922647232,-500.0,0.00016712,2]
[327247591,1715922647243,-3235.34,0.00016712,2]
[327247593,1715922647254,-500.0,0.00016712,2]
[327247595,1715922647264,-1749.67,0.00016712,2]
[327247597,1715922647274,-1077.68,0.00016712,2]
[327247599,1715922647283,-500.0,0.00016712,2]
[327247601,1715922647294,-21854.4,0.00016712,2]
[327247603,1715922647304,-973.91,0.00016712,2]
[327247605,1715922647312,-500.0,0.00016712,2]
[327247606,1715922647322,-2002.51,0.00016712,2]
[327247608,1715922647331,-500.0,0.00016712,2]
[327247610,1715922647341,-500.0,0.00016712,2]
[327247612,1715922647350,-882.58,0.00016712,2]
[327247614,1715922647360,-835.26,0.00016712,2]
[327247616,1715922647369,-852.08,0.00016712,2]
[327247618,1715922647379,-500.0,0.00016712,2]
[327247619,1715922647387,-5668.9,0.00016712,2]
[327247621,1715922647397,-591.56,0.00016712,2]
[327247623,1715922647407,-500.0,0.00016712,2]
[327247625,1715922647416,-500.0,0.00016712,2]
[327247627,1715922647425,-1237.06,0.00016712,2]
[327247629,1715922647435,-500.0,0.00016712,2]
[327247631,1715922647445,-2062.57,0.00016712,2]
[327247633,1715922647454,-541.56,0.00016712,2]
[327247634,1715922647463,-2676.92,0.00016712,2]
[327247636,1715922647472,-500.0,0.00016712,2]
[327247638,1715922647481,-500.0,0.00016712,2]
[327247640,1715922647490,-564.6,0.00016712,2]
[327247642,1715922647499,-500.0,0.00016712,2]
[327247644,1715922647508,-5480.68,0.00016712,2]
[327247646,1715922647517,-370.103146,0.00016712,2]
[327247647,1715922647527,-370.103146,0.00016712,2]
[327247649,1715922647537,-370.103146,0.00016712,2]
[327247651,1715922647546,-500.0,0.00016712,2]
[327247653,1715922647555,-8702.14,0.00016712,2]
[327247655,1715922647564,-500.0,0.00016712,2]
[327247657,1715922647574,-370.103146,0.00016712,2]
[327247659,1715922647583,-370.103146,0.00016712,2]
[327247661,1715922647593,-370.103145,0.00016712,2]
[327247662,1715922647603,-956.22,0.00016712,2]
[327247664,1715922647612,-500.0,0.00016712,2]
[327247666,1715922647621,-500.0,0.00016712,2]
[327247668,1715922647630,-1201.14,0.00016712,2]
[327247670,1715922647640,-631.92,0.00016712,2]
[327247672,1715922647649,-826.950233,0.00016712,2]
[327247674,1715922647658,-826.950233,0.00016712,2]
[327247675,1715922647668,-826.950233,0.00016712,2]
[327247677,1715922647677,-826.950233,0.00016712,2]
[327247679,1715922647686,-826.950233,0.00016712,2]
[327247681,1715922647695,-535.49,0.00016712,2]
[327247683,1715922647704,-826.950242,0.00016712,2]
[327247685,1715922647713,-166.6,0.00016712,2]
[327247687,1715922647723,-500.0,0.00016712,2]
[327247689,1715922647732,-868.03,0.00016712,2]
[327247691,1715922647741,-1767.27,0.00016712,2]
[327247692,1715922647750,-500.0,0.00016712,2]
[327247694,1715922647759,-500.0,0.00016712,2]
[327247696,1715922647768,-500.0,0.00016712,2]
[327247698,1715922647777,-678.71,0.00016712,2]
[327247699,1715922647786,-1891.598597,0.00016712,2]
[327247700,1715922647795,-1385.83,0.00016712,2]
[327247701,1715922647804,-1891.598597,0.00016712,2]
[327247702,1715922647814,-1891.598597,0.00016712,2]
[327247703,1715922647822,-151.0,0.00016712,2]
[327247704,1715922647831,-151.0,0.00016712,2]
[327247705,1715922647840,-151.0,0.00016712,2]
[327247706,1715922647849,-1891.598597,0.00016712,2]
[327247707,1715922647858,-1891.598597,0.00016712,2]
[327247708,1715922647867,-1891.59859765,0.00016712,2]
[327247709,1715922647875,-669.04,0.00016712,2]
[327247710,1715922647884,-291.1139045,0.00016712,2]
[327247711,1715922647893,-291.1139045,0.00016712,2]
[327247712,1715922647902,-291.1139045,0.00016712,2]
[327247713,1715922647911,-291.1139045,0.00016712,2]
[327247714,1715922647920,-291.1139045,0.00016712,2]
[327247715,1715922647929,-291.1139045,0.00016712,2]
[327247716,1715922647938,-291.1139045,0.00016712,2]
[327247717,1715922647946,-291.1139045,0.00016712,2]
[327247718,1715922647956,-293.1175262,0.00016712,2]
[327247719,1715922647965,-153.0,0.000168,2]
[327247720,1715922647974,-154.4014132,0.000168,2]
[327247721,1715922647982,-153.0,0.000168,2]
[327247722,1715922647991,-154.7686632,0.000168,2]
[327247723,1715922648000,-153.0,0.000168,2]
[327247725,1715922648009,-153.0,0.000168,2]
[327247726,1715922648018,-291.1139045,0.000168,2]
[327247728,1715922648027,-153.0,0.000168,2]
[327247729,1715922648036,-153.0,0.000168,2]
[327247731,1715922648045,-153.0,0.000168,2]
[327247733,1715922648054,-153.0,0.000168,2]
[327247735,1715922648063,-153.0,0.000168,2]
[327247737,1715922648072,-153.0,0.000168,2]
[327247739,1715922648082,-153.0,0.000168,2]
[327247741,1715922648091,-291.1139045,0.000168,2]
[327247743,1715922648100,-153.0,0.000168,2]
[327247745,1715922648109,-153.0,0.000168,2]
[327247747,1715922648119,-161.9,0.00016813,2]
[327247749,1715922648128,-661.5,0.00016813,2]
[327247751,1715922648137,-274.09997115,0.00016984,2]
[327247753,1715922648146,-630.36246872,0.00016984,2]
[327247755,1715922648155,-15428.22365629,0.00016985,2]
[327247757,1715922648164,-500.0,0.00016986,2]
[327247759,1715922648178,-648.61,0.00016986,4]
[327247761,1715922648187,-500.0,0.00016986,2]
[327247763,1715922648196,-500.0,0.00016986,2]
[327247765,1715922648205,-500.0,0.00016986,2]
[327247767,1715922648214,-529.56,0.00016986,2]
[327247769,1715922648222,-500.0,0.00016986,2]
[327247771,1715922648232,-500.0,0.00016986,2]
[327247773,1715922648241,-987.66,0.00016986,2]
[327247775,1715922648250,-500.0,0.00016986,2]
[327247777,1715922648259,-500.0,0.00016986,2]
[327247779,1715922648268,-500.0,0.00016986,2]
[327247781,1715922648278,-500.0,0.00016986,2]
[327247783,1715922648287,-1038.68,0.00016986,2]
[327247785,1715922648296,-500.0,0.00016986,2]
[327247787,1715922648305,-500.0,0.00016986,2]
[327247789,1715922648314,-500.0,0.00016986,2]
[327247791,1715922648323,-500.0,0.00016986,2]
[327247793,1715922648332,-500.0,0.00016986,2]
[327247795,1715922648342,-588.05,0.00016986,2]
[327247797,1715922648351,-500.0,0.00016986,2]
[327247799,1715922648360,-1068.97,0.00016986,2]
[327247801,1715922648370,-500.0,0.00016986,2]
[327247803,1715922648379,-500.0,0.00016986,2]
[327247805,1715922648387,-732.31,0.00016986,2]
[327247807,1715922648396,-500.0,0.00016986,2]
[327247809,1715922648405,-697.0,0.00016986,2]
[327247811,1715922648414,-500.0,0.00016986,2]
[327247813,1715922648424,-536.98297653,0.00016986,2]
[327247815,1715922648434,-500.0,0.00016986,2]
[327247817,1715922648443,-500.0,0.00016986,2]
[327247819,1715922648451,-801.99,0.00016986,2]
[327247821,1715922648461,-500.0,0.00016986,2]
[327247823,1715922648470,-500.0,0.00016986,2]